fUST/lending_fUST_20240310
["ID","MTS","AMOUNT","RATE_DAILY","PERIOD"]
[317962221,1710019838733,-500.0,0.00022999,2]
[317962223,1710019838742,-500.0,0.00022999,2]
[317962226,1710019838751,-500.0,0.00022999,2]
[317962228,1710019838761,-500.0,0.00022999,2]
[317962229,1710019838770,-500.0,0.00022999,2]
[317962231,1710019838779,-500.0,0.00022999,2]
[317962233,1710019838787,-500.0,0.00022999,2]
[317962235,1710019838796,-500.0,0.00022999,2]
[317962237,1710019838805,-500.0,0.00022999,2]
[317962240,1710019838815,-500.0,0.00022999,2]
[317962242,1710019838824,-500.0,0.00022999,2]
[317962244,1710019838832,-500.0,0.00022999,2]
[317962246,1710019838841,-500.0,0.00022999,2]
[317962248,1710019838850,-500.0,0.00022999,2]
[317962250,1710019838858,-500.0,0.00022999,2]
[317962252,1710019838867,-194.61807279,0.00022999,2]
[317962254,1710019838876,-500.0,0.00022999,2]
[317962256,1710019838885,-500.0,0.00022999,2]
[317962258,1710019838894,-500.0,0.00022999,2]
[317962260,1710019838903,-500.0,0.00022999,2]
[317962261,1710019838912,-500.0,0.00022999,2]
[317962263,1710019838921,-500.0,0.00022999,2]
[317962265,1710019838930,-500.0,0.00022999,2]
[317962267,1710019838939,-500.0,0.00022999,2]
[317962270,1710019838948,-500.0,0.00022999,2]
[317962272,1710019838957,-500.0,0.00022999,2]
[317962273,1710019838966,-500.0,0.00022999,2]
[317962275,1710019838975,-500.0,0.00022999,2]
[317962277,1710019838985,-484.33533077,0.00022999,2]
[317962279,1710019838994,-500.0,0.00022999,2]
[317962281,1710019839003,-256.06844297,0.00022999,2]
[317962283,1710019839012,-500.0,0.00022999,2]
[317962285,1710019839021,-500.0,0.00022999,2]
[317962287,1710019839030,-500.0,0.00022999,2]
[317962289,1710019839041,-500.0,0.00022999,2]
[317962291,1710019839052,-500.0,0.00022999,2]
[317962293,1710019839062,-500.0,0.00022999,2]
[317962295,1710019839071,-500.0,0.00022999,2]
[317962297,1710019839080,-500.0,0.00022999,2]
[317962299,1710019839089,-500.0,0.00022999,2]
[317962301,1710019839099,-500.0,0.00022999,2]
[317962303,1710019839109,-500.0,0.00022999,2]
[317962305,1710019839118,-500.0,0.00022999,2]
[317962307,1710019839128,-500.0,0.00022999,2]
[317962310,1710019839137,-500.0,0.00022999,2]
[317962311,1710019839146,-160.10586083,0.00022999,2]
[317962313,1710019839155,-500.0,0.00022999,2]
[317962316,1710019839164,-500.0,0.00022999,2]
[317962318,1710019839174,-500.0,0.00022999,2]
[317962320,1710019839183,-500.0,0.00022999,2]
[317962322,1710019839197,-285.06904663,0.00022999,2]
[317962324,1710019839206,-24319.80629941,0.00023,5]
[317962326,1710019839218,-18911.59836554,0.00023,5]
[317962749,1710019843010,-180706.8367865,0.00023,5]
[317963932,1710020129254,544.2,0.00022,120]
[317964725,1710021038144,-179.69289793,0.00019886,2]
[317964727,1710021038153,-155.15204901,0.00019887,2]
[317964729,1710021038163,-155.15204901,0.00019887,2]
[317964731,1710021038172,-2114.85760717,0.00019888,2]
[317964733,1710021038182,-1080.91906796,0.00019889,2]
[317964735,1710021038190,-745.78738975,0.00019889,2]
[317964737,1710021038200,-248.9149611,0.000199,2]
[317964739,1710021038209,-10810.9578566,0.0002142,2]
[317964741,1710021038218,-236.789915,0.00021451,2]
[317964743,1710021038227,-174.3389331,0.00021918,2]
[317964745,1710021038237,-158.579163,0.0002232,2]
[317964747,1710021038247,-171.07958362,0.00022769,2]
[317964749,1710021038256,-494.27122985,0.00022884,2]
[317964751,1710021038265,-494.27122984,0.00022888,2]
[317964753,1710021038274,-494.27122984,0.00022892,2]
[317964755,1710021038283,-494.27122984,0.00022896,2]
[317964757,1710021038293,-2826.24846518,0.000229,2]
[317964759,1710021038302,-1443.82471197,0.000229,2]
[317964761,1710021038313,-494.27122984,0.000229,2]
[317964763,1710021038322,-5145.32903241,0.00022975,2]
[317964765,1710021038331,-436.588393,0.00022984,3]
[317964767,1710021038340,-2934.03251251,0.00022984,3]
[317964769,1710021038349,-2095.48473187,0.00022984,3]
[317964771,1710021038358,-1020.99157412,0.00022984,3]
[317965030,1710021040855,-33.19982231,0.00022984,3]
[317965032,1710021040865,-160.0,0.00022997,2]
[317965033,1710021040874,-318.35528131,0.00022998,2]
[317965035,1710021040884,-404.25795967,0.00022998,2]
[317965037,1710021040893,-218.46610751,0.00022998,2]
[317965040,1710021040902,-405.9088642,0.00022998,2]
[317965043,1710021040914,-298.05271321,0.00022998,2]
[317965044,1710021040923,-492.4302022,0.00022998,2]
[317965046,1710021040934,-200.53016737,0.00022998,2]
[317965048,1710021040943,-7345.25383802,0.00022998,2]
[317965050,1710021040951,-197.67761353,0.00022998,2]
[317965052,1710021040960,-1881.65756627,0.00022999,2]
[317965054,1710021040969,-500.0,0.00022999,2]
[317965056,1710021040979,-500.0,0.00022999,2]
[317965058,1710021040988,-385.02076225,0.00022999,2]
[317965060,1710021040997,-165.0088981,0.00022999,2]
[317965062,1710021041006,-500.0,0.00022999,2]
[317965064,1710021041015,-230.28891739,0.00022999,2]
[317965066,1710021041025,-500.0,0.00022999,2]
[317965068,1710021041035,-500.0,0.00022999,2]
[317965070,1710021041044,-500.0,0.00022999,2]
[317965079,1710021041188,-903.22714865,0.00022999,7]
[317965080,1710021041201,-96.77285135,0.00022999,7]
[317965081,1710021041211,-3725.62714865,0.00023,5]
[317965082,1710021041222,-2832.04687078,0.00023,5]
[317965083,1710021041233,-17275.04236248,0.00023,5]
[317965273,1710021043015,-3475.48049575,0.00023,5]
[317965608,1710021046122,-17962.60223541,0.00023,5]
[317966321,1710021093954,5871.83345661,0.00023,30]
[317966539,1710022238225,-179.69289793,0.00017562,2]
[317966541,1710022238234,-1606.48981594,0.00017563,2]
[317966543,1710022238243,-1080.91906796,0.00017564,2]
[317966545,1710022238252,-20504.55331016,0.00017564,2]
[317966547,1710022238263,-2114.85760717,0.00017565,2]
[317966549,1710022238273,-272.0,0.0001757,2]
[317966551,1710022238282,-311.24841407,0.000176,2]
[317966553,1710022238291,-174.358051,0.00019472,2]
[317966555,1710022238301,-21098.8404512,0.00019808,2]
[317966557,1710022238310,-229.949546,0.00019851,2]
[317966559,1710022238318,-306.80997,0.0002,2]
[317966561,1710022238327,-174.358051,0.00020357,2]
[317966563,1710022238336,-330.16544113,0.000209,2]
[317966565,1710022238344,-186.158845,0.00020902,2]
[317966567,1710022238353,-234.5603303,0.00021,2]
[317966569,1710022238362,-176.38342666,0.00021,2]
[317966571,1710022238371,-1397.88995671,0.00021,2]
[317966573,1710022238380,-174.358051,0.00021241,2]
[317966575,1710022238388,-169.0,0.00022,2]
[317966577,1710022238397,-174.358051,0.00022126,2]
[317966579,1710022238406,-169.0,0.00022192,2]
[317966581,1710022238416,-270.43795062,0.00022984,3]
[317966583,1710022238425,-302.10057577,0.00022984,3]
[317966585,1710022238434,-550.1310961,0.00022984,3]
[317966587,1710022238443,-523.87118297,0.00022984,3]
[317966589,1710022238453,-500.0,0.00022997,2]
[317966590,1710022238462,-500.0,0.00022997,2]
[317966592,1710022238471,-453.25665647,0.00022997,2]
[317966594,1710022238481,-500.0,0.00022997,2]
[317966596,1710022238490,-500.0,0.00022997,2]
[317966598,1710022238499,-509.4004352,0.00022997,2]
[317966600,1710022238508,-500.0,0.00022997,2]
[317966602,1710022238517,-500.0,0.00022997,2]
[317966604,1710022238526,-500.0,0.00022997,2]
[317966606,1710022238535,-500.0,0.00022997,2]
[317966608,1710022238544,-228.702146,0.00022997,2]
[317966610,1710022238553,-155.03255684,0.00022997,2]
[317966612,1710022238563,-500.0,0.00022997,2]
[317966614,1710022238572,-500.0,0.00022997,2]
[317966616,1710022238582,-500.0,0.00022997,2]
[317966618,1710022238591,-500.0,0.00022997,2]
[317966620,1710022238600,-500.0,0.00022997,2]
[317966622,1710022238609,-500.0,0.00022997,2]
[317966624,1710022238618,-500.0,0.00022997,2]
[317966626,1710022238627,-500.0,0.00022997,2]
[317966628,1710022238637,-500.0,0.00022997,2]
[317966630,1710022238646,-500.0,0.00022997,2]
[317966632,1710022238656,-500.0,0.00022997,2]
[317966634,1710022238665,-500.0,0.00022997,2]
[317966636,1710022238674,-500.0,0.00022997,2]
[317966638,1710022238683,-155.03255684,0.00022997,2]
[317966640,1710022238692,-500.0,0.00022997,2]
[317966642,1710022238701,-398.72297081,0.00022997,2]
[317966644,1710022238710,-710.32121126,0.00022998,2]
[317966646,1710022238720,-558.12234443,0.00022998,2]
[317966648,1710022238730,-155.88805604,0.00022998,2]
[317966650,1710022238740,-155.20285712,0.00022998,2]
[317966652,1710022238749,-211.93787119,0.00022998,2]
[317966654,1710022238759,-538.93657172,0.00022998,2]
[317966656,1710022238768,-1473.66141674,0.00022998,2]
[317966658,1710022238778,-165.58722365,0.00022998,2]
[317966660,1710022238787,-668.93854649,0.00022998,2]
[317966663,1710022238797,-290.38682753,0.00022998,2]
[317966664,1710022238806,-12603.31086069,0.00022998,2]
[317966666,1710022238815,-171.04775531,0.00022998,2]
[317966668,1710022238824,-238.79913038,0.00022998,2]
[317966670,1710022238837,-3143.04140967,0.00022998,2]
[317966672,1710022238846,-26588.49517047,0.00022998,2]
[317966675,1710022238859,-21050.72716605,0.00022998,2]
[317966677,1710022238869,-1431.24147062,0.00022998,2]
[317966679,1710022238881,-886.1383934,0.00022998,2]
[317966681,1710022238890,-157.3240075,0.00022998,2]
[317966683,1710022238899,-183.4020858,0.00022999,2]
[317966685,1710022238909,-881.90112879,0.00022999,2]
[317966687,1710022238919,-204.79909624,0.00022999,2]
[317966689,1710022238929,-256.06844297,0.00022999,2]
[317966691,1710022238938,-500.0,0.00022999,2]
[317966692,1710022238947,-500.0,0.00022999,2]
[317966694,1710022238956,-500.0,0.00022999,2]
[317966696,1710022238965,-500.0,0.00022999,2]
[317966698,1710022238975,-500.0,0.00022999,2]
[317966700,1710022238984,-500.0,0.00022999,2]
[317966703,1710022238994,-500.0,0.00022999,2]
[317966705,1710022239004,-500.0,0.00022999,2]
[317966707,1710022239015,-500.0,0.00022999,2]
[317966709,1710022239023,-500.0,0.00022999,2]
[317966710,1710022239032,-500.0,0.00022999,2]
[317966713,1710022239042,-500.0,0.00022999,2]
[317966715,1710022239051,-500.0,0.00022999,2]
[317966716,1710022239060,-500.0,0.00022999,2]
[317966718,1710022239071,-500.0,0.00022999,2]
[317966720,1710022239080,-285.06904663,0.00022999,2]
[317966722,1710022239090,-500.74126474,0.00022999,2]
[317966724,1710022239100,-500.0,0.00022999,2]
[317966727,1710022239110,-160.10586083,0.00022999,2]
[317966729,1710022239120,-500.0,0.00022999,2]
[317966731,1710022239129,-500.0,0.00022999,2]
[317966732,1710022239138,-500.0,0.00022999,2]
[317966735,1710022239149,-500.0,0.00022999,2]
[317966736,1710022239158,-500.0,0.00022999,2]
[317966739,1710022239167,-500.0,0.00022999,2]
[317966740,1710022239177,-500.0,0.00022999,2]
[317966743,1710022239187,-500.0,0.00022999,2]
[317966745,1710022239197,-500.0,0.00022999,2]
[317966746,1710022239208,-484.33533077,0.00022999,2]
[317966748,1710022239217,-500.0,0.00022999,2]
[317966750,1710022239227,-500.0,0.00022999,2]
[317966752,1710022239236,-500.0,0.00022999,2]
[317966754,1710022239245,-500.0,0.00022999,2]
[317966756,1710022239255,-500.0,0.00022999,2]
[317966758,1710022239267,-500.0,0.00022999,2]
[317966760,1710022239278,-500.0,0.00022999,2]
[317966762,1710022239287,-500.0,0.00022999,2]
[317966764,1710022239297,-500.0,0.00022999,2]
[317966767,1710022239307,-500.0,0.00022999,2]
[317966768,1710022239316,-500.0,0.00022999,2]
[317966771,1710022239326,-500.0,0.00022999,2]
[317966772,1710022239335,-500.0,0.00022999,2]
[317966774,1710022239344,-194.61807279,0.00022999,2]
[317966776,1710022239354,-276.84141771,0.00023,3]
[317966778,1710022239363,-62437.42021687,0.00023,5]
[317967168,1710022243270,-1881.65756627,0.00017562,2]
[317967170,1710022243279,-606531.47489745,0.00023,5]
[317967487,1710022246307,-7160.864,0.00023,5]
[317973205,1710023432678,-1951.29003649,0.00020612,2]
[317973208,1710023432688,-179.69289793,0.00020612,2]
[317973211,1710023432699,-1080.91906796,0.00020613,2]
[317973214,1710023432708,-2114.85760717,0.00020614,2]
[317973217,1710023432718,-975.01777009,0.0002063,2]
[317973219,1710023432727,-155.03875969,0.00020889,2]
[317973223,1710023432737,-220.11029409,0.000209,2]
[317973226,1710023432746,-949.7838343,0.00021016,2]
[317973228,1710023432755,-186.175603,0.00021329,2]
[317973231,1710023432765,-637.7508885,0.00021661,2]
[317973234,1710023432774,-169.0,0.00022,2]
[317973236,1710023432783,-169.0,0.00022192,2]
[317973238,1710023432792,-2682.39611031,0.00022192,2]
[317973240,1710023432801,-859.39159977,0.00022308,5]
[317973242,1710023432811,-156.541972,0.0002232,2]
[317973245,1710023432822,-190.168356,0.0002232,2]
[317973248,1710023432831,-885.52077299,0.00022984,3]
[317973251,1710023432840,-155.13030946,0.00022998,2]
[317973254,1710023432850,-500.0,0.00022998,2]
[317973257,1710023432859,-186.40511874,0.00022998,2]
[317973259,1710023432868,-624.13231565,0.00022998,2]
[317973261,1710023432877,-163.32544229,0.00022998,2]
[317973263,1710023432887,-500.0,0.00022998,2]
[317973265,1710023432896,-500.0,0.00022998,2]
[317973267,1710023432906,-500.0,0.00022998,2]
[317973269,1710023432915,-934.04187565,0.00022999,2]
[317973271,1710023432924,-956.48083771,0.00022999,2]
[317973273,1710023432933,-1605.92382438,0.00022999,2]
[317973275,1710023432942,-659.75020158,0.00022999,2]
[317973277,1710023432951,-192.07801622,0.00022999,2]
[317973279,1710023432960,-10612.79365317,0.00022999,2]
[317973819,1710023438365,-32262.91274173,0.00022999,2]
[317973820,1710023438375,-500.0,0.00022999,2]
[317973821,1710023438384,-500.0,0.00022999,2]
[317973822,1710023438394,-500.0,0.00022999,2]
[317973823,1710023438403,-500.0,0.00022999,2]
[317973825,1710023438413,-500.0,0.00022999,2]
[317973827,1710023438422,-516.32,0.00022999,2]
[317973829,1710023438431,-592.46425083,0.00022999,2]
[317973831,1710023438443,-90764.94334549,0.00023,5]
[317973833,1710023438455,-1155.95943727,0.00023,5]
[317976908,1710024638674,-1080.91906796,0.00020322,2]
[317976910,1710024638685,-179.69289793,0.00020322,2]
[317976912,1710024638696,-168.909687,0.00020323,2]
[317976914,1710024638707,-141.40399049,0.00020593,2]
[317976962,1710024643554,-388.92934453,0.000189,2]
[317976963,1710024643563,-659.07065647,0.00020593,2]
[317976970,1710024646682,-1500.28405,0.00020593,2]
[317977050,1710025832862,-155.15049598,0.00018858,2]
[317977051,1710025832871,-155.94121412,0.00018858,2]
[317977053,1710025832882,-179.69289793,0.00018858,2]
[317977055,1710025832891,-303.97263676,0.000189,2]
[317977058,1710025832900,-152.06197717,0.00019002,2]
[317977062,1710025832912,-97.93802283,0.00019002,2]
[317977065,1710025832923,-174.466728,0.00019034,2]
[317977067,1710025832935,-168.0407288,0.00019178,2]
[317977069,1710025832944,-1686.5455876,0.00019535,2]
[317977071,1710025832952,-24870.0,0.00019576,2]
[317977073,1710025832962,-310.07908879,0.00020593,2]
[317977075,1710025832970,-169.0,0.00022,2]
[317977077,1710025832979,-6047.54617027,0.00022,2]
[317977079,1710025832988,-212.0,0.00022,2]
[317977080,1710025832997,-306.8584861,0.00022055,2]
[317977082,1710025833007,-171.73443592,0.00022898,2]
[317977083,1710025833016,-500.0,0.00022898,2]
[317977084,1710025833025,-505.24,0.00022898,2]
[317977085,1710025833034,-151.0,0.00022898,2]
[317977086,1710025833043,-500.0,0.00022898,2]
[317977087,1710025833052,-155.12254681,0.00022898,2]
[317977088,1710025833061,-500.0,0.00022898,2]
[317977089,1710025833070,-500.0,0.00022898,2]
[317977090,1710025833079,-505.24,0.00022899,2]
[317977091,1710025833088,-151.0,0.00022899,2]
[317977092,1710025833096,-500.0,0.00022899,2]
[317977093,1710025833105,-500.0,0.00022899,2]
[317977094,1710025833114,-500.0,0.00022899,2]
[317977095,1710025833123,-500.0,0.00022899,2]
[317977096,1710025833133,-500.0,0.00022899,2]
[317977097,1710025833142,-500.0,0.00022899,2]
[317977098,1710025833151,-500.0,0.00022899,2]
[317977099,1710025833160,-500.0,0.00022899,2]
[317977100,1710025833169,-500.0,0.00022899,2]
[317977101,1710025833178,-500.0,0.00022899,2]
[317977102,1710025833188,-500.0,0.00022899,2]
[317977103,1710025833197,-500.0,0.00022899,2]
[317977104,1710025833206,-184.84337618,0.00022899,2]
[317977105,1710025833215,-27649.64544412,0.000229,2]
[317977148,1710025840791,-1080.91906796,0.00018857,2]
[317977150,1710025840800,-174.466728,0.00018986,2]
[317977152,1710025840810,-500.0,0.00022898,2]
[317977154,1710025840820,-500.0,0.00022899,2]
[317977156,1710025840831,-30060.15761103,0.000229,2]
[317977158,1710025840841,-305.91236581,0.00022984,3]
[317977160,1710025840850,-1000.0,0.00022984,7]
[317977161,1710025840859,-221.38019325,0.00022984,3]
[317977164,1710025840869,-246.85326403,0.00022997,2]
[317977165,1710025840878,-500.0,0.00022997,2]
[317977168,1710025840888,-500.0,0.00022997,2]
[317977169,1710025840897,-500.0,0.00022997,2]
[317977170,1710025840906,-160.0,0.00022998,2]
[317977171,1710025840916,-160.0,0.00022998,2]
[317977172,1710025840926,-179.41638659,0.00022998,2]
[317977173,1710025840935,-289.8851299,0.00022998,2]
[317977174,1710025840945,-875.30218491,0.00022998,2]
[317977175,1710025840954,-668.6971275,0.00022998,2]
[317977176,1710025840964,-5759.0837949,0.00022998,2]
[317977177,1710025840973,-1668.03514243,0.00022998,2]
[317977178,1710025840982,-157.29568872,0.00022998,2]
[317977179,1710025840991,-177.67761353,0.00022998,2]
[317977180,1710025841002,-3019.63398383,0.00022998,2]
[317977181,1710025841011,-505.24,0.00022998,2]
[317977182,1710025841020,-151.0,0.00022998,2]
[317977183,1710025841029,-500.0,0.00022998,2]
[317977184,1710025841038,-590.38302196,0.00022999,2]
[317977185,1710025841048,-909.77798843,0.00022999,2]
[317977186,1710025841057,-500.0,0.00022999,2]
[317977187,1710025841067,-500.0,0.00022999,2]
[317977188,1710025841076,-500.0,0.00022999,2]
[317977189,1710025841086,-500.0,0.00022999,2]
[317977190,1710025841095,-500.0,0.00022999,2]
[317977191,1710025841105,-500.0,0.00022999,2]
[317977192,1710025841114,-500.0,0.00022999,2]
[317977193,1710025841123,-500.0,0.00022999,2]
[317977194,1710025841133,-500.0,0.00022999,2]
[317977195,1710025841142,-500.0,0.00022999,2]
[317977196,1710025841152,-494.1024788,0.00022999,2]
[317977197,1710025841161,-500.0,0.00022999,2]
[317977198,1710025841171,-500.0,0.00022999,2]
[317977199,1710025841180,-505.24,0.00022999,2]
[317977200,1710025841190,-505.24,0.00022999,2]
[317977201,1710025841198,-505.24,0.00022999,2]
[317977202,1710025841207,-505.24,0.00022999,2]
[317977203,1710025841216,-505.24,0.00022999,2]
[317977204,1710025841227,-505.24,0.00022999,2]
[317977205,1710025841236,-505.24,0.00022999,2]
[317977206,1710025841248,-505.24,0.00022999,2]
[317977208,1710025841257,-505.24,0.00022999,2]
[317977209,1710025841266,-505.24,0.00022999,2]
[317977211,1710025841276,-505.24,0.00022999,2]
[317977212,1710025841285,-505.24,0.00022999,2]
[317977214,1710025841294,-505.24,0.00022999,2]
[317977216,1710025841304,-505.24,0.00022999,2]
[317977218,1710025841313,-505.24,0.00022999,2]
[317977219,1710025841321,-505.24,0.00022999,2]
[317977220,1710025841331,-505.24,0.00022999,2]
[317977221,1710025841340,-505.24,0.00022999,2]
[317977222,1710025841349,-505.24,0.00022999,2]
[317977223,1710025841358,-505.24,0.00022999,2]
[317977224,1710025841367,-505.46266293,0.00022999,2]
[317977225,1710025841377,-500.0,0.00022999,2]
[317977226,1710025841386,-500.0,0.00022999,2]
[317977227,1710025841395,-500.0,0.00022999,2]
[317977228,1710025841404,-500.0,0.00022999,2]
[317977229,1710025841414,-500.0,0.00022999,2]
[317977230,1710025841423,-500.0,0.00022999,2]
[317977231,1710025841432,-500.0,0.00022999,2]
[317977232,1710025841442,-219.55,0.00022999,2]
[317977233,1710025841452,-500.0,0.00022999,2]
[317977234,1710025841461,-500.0,0.00022999,2]
[317977235,1710025841470,-500.0,0.00022999,2]
[317977236,1710025841479,-500.0,0.00022999,2]
[317977237,1710025841489,-500.0,0.00022999,2]
[317977238,1710025841499,-500.0,0.00022999,2]
[317977239,1710025841508,-500.0,0.00022999,2]
[317977240,1710025841518,-500.0,0.00022999,2]
[317977241,1710025841527,-500.0,0.00022999,2]
[317977242,1710025841536,-500.0,0.00022999,2]
[317977243,1710025841545,-500.0,0.00022999,2]
[317977244,1710025841555,-500.0,0.00022999,2]
[317977245,1710025841564,-500.0,0.00022999,2]
[317977246,1710025841574,-500.0,0.00022999,2]
[317977247,1710025841583,-500.0,0.00022999,2]
[317977248,1710025841593,-289.4,0.00022999,2]
[317977249,1710025841602,-17927.98149971,0.00023,5]
[317977354,1710027032953,-473.83415027,0.0002076,2]
[317977403,1710027037939,-179.69289793,0.00020759,2]
[317977404,1710027037948,-607.08491769,0.0002076,2]
[317977405,1710027037957,-321.88357112,0.00020761,2]
[317977406,1710027037966,-186.9069291,0.000208,2]
[317977407,1710027037975,-202.64842451,0.000209,2]
[317977408,1710027037984,-159.0,0.00022,2]
[317977409,1710027037993,-965.0,0.00022,2]
[317977410,1710027038002,-500.0,0.00022898,2]
[317977411,1710027038011,-54.33552502,0.00022899,2]
[317977945,1710027043184,-445.66447498,0.00022899,2]
[317977947,1710027043194,-1570.92564338,0.000229,2]
[317977949,1710027043203,-445.13231714,0.00022984,3]
[317977951,1710027043213,-155.7478091,0.00022984,3]
[317977953,1710027043222,-500.0,0.00022997,2]
[317977955,1710027043231,-310.12557478,0.00022998,2]
[317977957,1710027043242,-155.83489796,0.00022998,2]
[317977959,1710027043251,-703.45953046,0.00022998,2]
[317977961,1710027043261,-157.29568872,0.00022998,2]
[317977963,1710027043270,-1668.03514243,0.00022998,2]
[317977965,1710027043279,-576.09370847,0.00022999,2]
[317977967,1710027043289,-500.0,0.00022999,2]
[317977969,1710027043298,-500.0,0.00022999,2]
[317977971,1710027043307,-596.09319558,0.00022999,2]
[317977974,1710027043317,-500.0,0.00022999,2]
[317977975,1710027043326,-500.0,0.00022999,2]
[317977978,1710027043336,-500.0,0.00022999,2]
[317977980,1710027043345,-500.0,0.00022999,2]
[317977982,1710027043354,-500.0,0.00022999,2]
[317977984,1710027043363,-500.0,0.00022999,2]
[317977986,1710027043372,-500.0,0.00022999,2]
[317977988,1710027043381,-500.0,0.00022999,2]
[317977990,1710027043390,-512.68448283,0.00022999,2]
[317977992,1710027043399,-500.0,0.00022999,2]
[317977994,1710027043409,-500.0,0.00022999,2]
[317977996,1710027043418,-500.0,0.00022999,2]
[317977998,1710027043427,-500.0,0.00022999,2]
[317978000,1710027043436,-500.0,0.00022999,2]
[317978002,1710027043445,-500.0,0.00022999,2]
[317978004,1710027043454,-500.0,0.00022999,2]
[317978006,1710027043464,-1010100.87517237,0.00023,5]
[317978284,1710027046337,-3104.8812,0.00023,5]
[317987836,1710028246389,-179.69289793,0.00020899,2]
[317987838,1710028246398,-369.64690398,0.000209,2]
[317987839,1710028246407,-291.3618972,0.00021798,2]
[317987841,1710028246416,-159.0,0.00022,2]
[317987843,1710028246425,-620.97435488,0.00022601,2]
[317987845,1710028246434,-176.46034309,0.00022899,2]
[317987847,1710028246443,-300.0,0.000229,10]
[317987849,1710028246452,-392.86841804,0.00022984,3]
[317987851,1710028246461,-222.74150548,0.00022984,3]
[317987853,1710028246470,-160.0,0.00022998,2]
[317987856,1710028246481,-175.22144084,0.00022998,2]
[317987858,1710028246491,-648.83402059,0.00022998,2]
[317987859,1710028246503,-1668.03514243,0.00022998,2]
[317987861,1710028246512,-225.47900573,0.00022998,2]
[317987864,1710028246522,-354.06776747,0.00022999,2]
[317987865,1710028246531,-151.0,0.00022999,2]
[317987868,1710028246542,-500.0,0.00022999,2]
[317987869,1710028246551,-362.07442197,0.00022999,2]
[317994214,1710029438255,-179.69289793,0.0002089,2]
[317994216,1710029438264,-155.11323266,0.00020891,2]
[317994218,1710029438274,-463.56148553,0.00020899,2]
[317994220,1710029438283,-197.157472,0.00021626,2]
[317994222,1710029438292,-155.12565178,0.00022998,2]
[317994224,1710029438302,-137.92557803,0.00022999,2]
[317994226,1710029438311,-500.0,0.00022999,2]
[317994228,1710029438320,-500.0,0.00022999,2]
[317994230,1710029438330,-500.0,0.00022999,2]
[317994232,1710029438339,-500.0,0.00022999,2]
[317994234,1710029438348,-467.36316448,0.00022999,2]
[317994236,1710029438357,-151.0,0.00022999,2]
[317994238,1710029438367,-151.0,0.00022999,2]
[317994240,1710029438376,-151.0,0.00022999,2]
[317994242,1710029438386,-151.0,0.00022999,2]
[317994244,1710029438395,-151.0,0.00022999,2]
[317994246,1710029438404,-151.0,0.00022999,2]
[317994248,1710029438416,-499.73518541,0.00022999,2]
[317994250,1710029438425,-218.28,0.00022999,2]
[317994252,1710029438434,-218.28,0.00022999,2]
[317994254,1710029438443,-218.28,0.00022999,2]
[317994256,1710029438452,-3419.99276638,0.00022999,2]
[317994258,1710029438462,-618.84888128,0.00022999,2]
[317994260,1710029438471,-500.0,0.00022999,2]
[317994262,1710029438480,-500.0,0.00022999,2]
[317994264,1710029438489,-590.9,0.00022999,2]
[317994266,1710029438499,-500.0,0.00022999,2]
[317994268,1710029438509,-347.21591125,0.00022999,2]
[317994270,1710029438518,-500.0,0.00022999,2]
[317994272,1710029438528,-500.0,0.00022999,2]
[317994274,1710029438537,-500.0,0.00022999,2]
[317994276,1710029438546,-500.0,0.00022999,2]
[317994278,1710029438555,-229.90808128,0.00022999,2]
[317994280,1710029438564,-500.0,0.00022999,2]